fUSD/lending_fUSD_20250428
["ID","MTS","AMOUNT","RATE_DAILY","PERIOD"]
[359251037,1745869865449,-151.0,0.0003863,14]
[359251038,1745869865458,-470.0,0.0003863,6]
[359251039,1745869865467,-470.0,0.0003863,6]
[359251040,1745869865477,-262.686321,0.0003863,14]
[359251041,1745869865486,-470.0,0.0003863,6]
[359251042,1745869865495,-300.0,0.0003863,6]
[359251043,1745869865505,-151.0,0.0003863,14]
[359251044,1745869865514,-470.0,0.0003863,6]
[359251045,1745869865523,-470.0,0.0003863,6]
[359251046,1745869865532,-470.0,0.0003863,6]
[359251047,1745869865541,-151.0,0.0003863,14]
[359251048,1745869865550,-312.97046141,0.0003863,6]
[359251049,1745869865559,-472.49,0.0003863,6]
[359251050,1745869865569,-547.36,0.0003863,6]
[359251051,1745869865578,-470.0,0.0003863,6]
[359251052,1745869865586,-470.0,0.0003863,6]
[359251053,1745869865595,-470.0,0.0003863,6]
[359251054,1745869865605,-470.0,0.0003863,6]
[359251055,1745869865614,-584.07,0.0003863,6]
[359251056,1745869865623,-470.0,0.0003863,6]
[359251057,1745869865632,-470.0,0.0003863,6]
[359251058,1745869865642,-470.0,0.0003863,6]
[359251059,1745869865651,-470.0,0.0003863,6]
[359251060,1745869865660,-698.51,0.0003863,6]
[359251061,1745869865669,-470.0,0.0003863,6]
[359251062,1745869865680,-470.0,0.0003863,6]
[359251063,1745869865689,-470.0,0.0003863,6]
[359251064,1745869865698,-470.0,0.0003863,6]
[359251065,1745869865707,-470.0,0.0003863,6]
[359251066,1745869865716,-470.0,0.0003863,6]
[359251067,1745869865726,-470.0,0.0003863,6]
[359251068,1745869865735,-590.2752072,0.0003863,6]
[359251069,1745869865744,-470.0,0.0003863,6]
[359251070,1745869865753,-470.0,0.0003863,6]
[359251071,1745869865762,-999.0,0.0003863,2]
[359251072,1745869865772,-158.04704092,0.0003863,6]
[359251073,1745869865782,-470.0,0.0003863,6]
[359251074,1745869865791,-470.0,0.0003863,6]
[359251075,1745869865801,-151.0,0.0003863,14]
[359251076,1745869865810,-552.45,0.0003863,6]
[359251077,1745869865819,-470.0,0.0003863,6]
[359251078,1745869865829,-470.0,0.0003863,6]
[359251079,1745869865838,-151.0,0.0003863,14]
[359251080,1745869865846,-470.0,0.0003863,6]
[359251081,1745869865855,-470.0,0.0003863,6]
[359251082,1745869865864,-470.0,0.0003863,6]
[359251083,1745869865872,-470.0,0.0003863,6]
[359251084,1745869865880,-470.0,0.0003863,6]
[359251085,1745869865890,-470.0,0.0003863,6]
[359251086,1745869865900,-470.0,0.0003863,6]
[359251087,1745869865909,-529.64,0.0003863,6]
[359251088,1745869865919,-660.29,0.0003863,6]
[359251089,1745869865930,-470.0,0.0003863,6]
[359251090,1745869865940,-568.56,0.0003863,6]
[359251091,1745869865949,-601.65764565,0.0003863,6]
[359251092,1745869865959,-470.0,0.0003863,6]
[359251093,1745869865968,-470.0,0.0003863,6]
[359251094,1745869865978,-470.0,0.0003863,6]
[359251095,1745869865987,-530.0,0.0003863,6]
[359251096,1745869865996,-470.0,0.0003863,6]
[359251097,1745869866006,-470.0,0.0003863,6]
[359251098,1745869866016,-579.83,0.0003863,6]
[359251099,1745869866025,-583.94,0.0003863,6]
[359251100,1745869866036,-151.0,0.0003863,14]
[359251101,1745869866046,-470.0,0.0003863,6]
[359251102,1745869866055,-2101.35,0.0003863,6]
[359251103,1745869866064,-470.0,0.0003863,6]
[359251104,1745869866074,-470.0,0.0003863,6]
[359251105,1745869866083,-470.0,0.0003863,6]
[359251106,1745869866093,-470.0,0.0003863,6]
[359251107,1745869866102,-470.0,0.0003863,6]
[359251108,1745869866112,-470.0,0.0003863,6]
[359251109,1745869866122,-470.0,0.0003863,6]
[359251110,1745869866131,-470.0,0.0003863,6]
[359251111,1745869866141,-1503.48,0.0003863,6]
[359251112,1745869866150,-470.0,0.0003863,6]
[359251113,1745869866159,-510.31733752,0.0003863,6]
[359251114,1745869866168,-470.0,0.0003863,6]
[359251115,1745869866179,-470.0,0.0003863,6]
[359251116,1745869866189,-470.0,0.0003863,6]
[359251117,1745869866199,-470.0,0.0003863,6]
[359251118,1745869866211,-470.0,0.0003863,6]
[359251119,1745869866220,-470.0,0.0003863,6]
[359251120,1745869866230,-470.0,0.0003863,6]
[359251121,1745869866239,-470.0,0.0003863,6]
[359251122,1745869866248,-714.3,0.0003863,6]
[359251123,1745869866259,-470.0,0.0003863,6]
[359251124,1745869866268,-470.0,0.0003863,6]
[359251125,1745869866277,-470.0,0.0003863,6]
[359251126,1745869866288,-470.0,0.0003863,6]
[359251127,1745869866297,-566.74569545,0.0003863,6]
[359251128,1745869866306,-151.0,0.0003863,14]
[359251129,1745869866316,-470.0,0.0003863,6]
[359251130,1745869866326,-470.0,0.0003863,6]
[359251131,1745869866335,-470.0,0.0003863,6]
[359251132,1745869866345,-470.0,0.0003863,6]
[359251133,1745869866353,-470.0,0.0003863,6]
[359251134,1745869866363,-470.0,0.0003863,6]
[359251135,1745869866372,-636.96,0.0003863,6]
[359251136,1745869866381,-470.0,0.0003863,6]
[359251137,1745869866391,-470.0,0.0003863,5]
[359251138,1745869866400,-470.0,0.0003863,6]
[359251139,1745869866410,-470.0,0.0003863,6]
[359251140,1745869866419,-544.37933053,0.0003863,6]
[359251141,1745869866431,-470.0,0.0003863,6]
[359251142,1745869866440,-563.34,0.0003863,6]
[359251143,1745869866449,-470.0,0.0003863,6]
[359251144,1745869866459,-470.0,0.0003863,6]
[359251145,1745869866468,-470.0,0.0003863,6]
[359251146,1745869866478,-470.0,0.0003863,6]
[359251147,1745869866490,-470.0,0.0003863,6]
[359251148,1745869866500,-470.0,0.0003863,6]
[359251149,1745869866509,-1000.0,0.0003863,6]
[359251150,1745869866518,-470.0,0.0003863,6]
[359251151,1745869866528,-470.0,0.0003863,6]
[359251152,1745869866537,-601.98,0.0003863,6]
[359251153,1745869866546,-470.0,0.0003863,6]
[359251154,1745869866555,-470.0,0.0003863,6]
[359251155,1745869866564,-470.0,0.0003863,6]
[359251156,1745869866574,-470.0,0.0003863,6]
[359251157,1745869866583,-694.36,0.0003863,6]
[359251158,1745869866593,-470.0,0.0003863,6]
[359251159,1745869866602,-470.0,0.0003863,6]
[359251160,1745869866611,-470.0,0.0003863,6]
[359251161,1745869866620,-470.0,0.0003863,6]
[359251162,1745869866630,-470.0,0.0003863,6]
[359251163,1745869866639,-470.0,0.0003863,6]
[359251164,1745869866648,-470.0,0.0003863,6]
[359251165,1745869866658,-470.0,0.0003863,6]
[359251166,1745869866804,-470.0,0.0003863,6]
[359251167,1745869866833,-470.0,0.0003863,6]
[359251168,1745869866843,-470.0,0.0003863,6]
[359251169,1745869866852,-151.0,0.0003863,14]
[359251170,1745869866862,-470.0,0.0003863,6]
[359251171,1745869866872,-470.0,0.0003863,6]
[359251172,1745869866882,-470.0,0.0003863,6]
[359251173,1745869866892,-470.0,0.0003863,6]
[359251174,1745869866902,-470.0,0.0003863,6]
[359251175,1745869866911,-470.0,0.0003863,6]
[359251176,1745869866922,-470.0,0.0003863,6]
[359251177,1745869866932,-545.62145066,0.0003863,6]
[359251178,1745869866942,-470.0,0.0003863,6]
[359251179,1745869866952,-470.0,0.0003863,6]
[359251180,1745869866962,-541.79853433,0.0003863,6]
[359251181,1745869866972,-470.0,0.0003863,6]
[359251182,1745869866982,-470.0,0.0003863,6]
[359251183,1745869866993,-470.0,0.0003863,6]
[359251184,1745869867004,-151.0,0.0003863,14]
[359251185,1745869867013,-470.0,0.0003863,6]
[359251186,1745869867023,-151.0,0.0003863,14]
[359251187,1745869867032,-470.0,0.0003863,6]
[359251188,1745869867042,-470.0,0.0003863,6]
[359251189,1745869867051,-1013.6,0.0003863,6]
[359251190,1745869867060,-470.0,0.0003863,6]
[359251191,1745869867070,-470.0,0.0003863,6]
[359251192,1745869867079,-479.34,0.0003863,6]
[359251193,1745869867088,-470.0,0.0003863,6]
[359251194,1745869867098,-470.0,0.0003863,6]
[359251195,1745869867107,-470.0,0.0003863,6]
[359251196,1745869867117,-470.0,0.0003863,6]
[359251197,1745869867127,-470.0,0.0003863,6]
[359251198,1745869867136,-470.0,0.0003863,6]
[359251199,1745869867145,-470.0,0.0003863,6]
[359251200,1745869867155,-470.0,0.0003863,6]
[359251201,1745869867164,-470.0,0.0003863,6]
[359251202,1745869867174,-470.0,0.0003863,6]
[359251203,1745869867183,-470.0,0.0003863,6]
[359251204,1745869867192,-470.0,0.0003863,6]
[359251205,1745869867201,-151.0,0.0003863,14]
[359251206,1745869867215,-593.32147488,0.0003863,6]
[359251207,1745869867224,-478.85,0.0003863,6]
[359251208,1745869867233,-470.0,0.0003863,6]
[359251209,1745869867243,-470.0,0.0003863,6]
[359251210,1745869867253,-470.0,0.0003863,6]
[359251211,1745869867262,-470.0,0.0003863,6]
[359251212,1745869867271,-677.61,0.0003863,6]
[359251213,1745869867283,-470.0,0.0003863,6]
[359251214,1745869867293,-286.131787,0.0003863,14]
[359251215,1745869867303,-470.0,0.0003863,6]
[359251216,1745869867312,-151.0,0.0003863,14]
[359251217,1745869867321,-470.0,0.0003863,6]
[359251218,1745869867331,-470.0,0.0003863,6]
[359251219,1745869867340,-470.0,0.0003863,6]
[359251220,1745869867349,-470.0,0.0003863,6]
[359251221,1745869867359,-678.18,0.0003863,6]
[359251222,1745869867368,-574.39,0.0003863,6]
[359251223,1745869867377,-286.131787,0.0003863,14]
[359251224,1745869867387,-600.0,0.0003863,6]
[359251225,1745869867396,-470.0,0.0003863,6]
[359251226,1745869867405,-470.0,0.0003863,6]
[359251227,1745869867414,-470.0,0.0003863,6]
[359251228,1745869867424,-470.0,0.0003863,6]
[359251229,1745869867433,-508.64,0.0003863,6]
[359251230,1745869867442,-470.0,0.0003863,6]
[359251231,1745869867452,-470.0,0.0003863,6]
[359251232,1745869867461,-250.0,0.0003863,6]
[359251233,1745869867470,-432.61659452,0.0003863,6]
[359251234,1745869867479,-79993.64218285,0.0003863,6]
[359251235,1745869869729,500.0,0.00036712,60]
[359251236,1745869870260,500.0,0.00037808,60]
[359251237,1745869921460,200.0,0.00030137,117]
[359251238,1745869921774,200.0,0.00027735,117]
[359251239,1745870008532,523.038768,0.000383,35]
[359251240,1745870050838,278.112116,7.945e-05,2]
[359251241,1745870088636,250.0,0.00017,2]
[359251242,1745870089768,300.0,0.00019,2]
[359251243,1745870167229,167.51179945,1.05e-06,2]
[359251244,1745870261285,1055.63469587,0.00038356,30]
[359251245,1745870309488,286.774,0.00037209,47]
[359251246,1745870351949,-150.0,0.0003863,120]
[359251247,1745870362624,-150.0,0.0003863,120]
[359251248,1745870372780,-200.0,0.0003863,120]
[359251249,1745870406795,-200.0,0.0003863,120]
[359251250,1745870409102,-200.0,0.0003863,120]
[359251251,1745870478826,150.0,1e-08,2]
[359251252,1745870502827,963.09,0.00038356,120]
[359251253,1745870557495,-1026.713226,0.0002,2]
[359251254,1745870573143,-200.0,0.00020066,2]
[359251255,1745870573165,-250.0,0.00020133,2]
[359251256,1745870573188,-350.0,0.00021,2]
[359251257,1745870573210,-632.81121136,0.00021109,2]
[359251258,1745870573233,-250.0,0.00021109,2]
[359251259,1745870573255,-250.0,0.00022,2]
[359251260,1745870573276,-67.18878864,0.00022,2]
[359251261,1745870699694,-200.0,0.0003863,120]
[359251262,1745870774071,-200.0,0.0003863,120]
[359251263,1745870777176,-200.0,0.0003863,120]
[359251264,1745870796006,569.15887577,0.00038356,120]
[359251266,1745870975386,500.0,0.0003291,30]
[359251267,1745870975710,500.0,0.00034175,30]
[359251268,1745870975806,500.0,0.00035441,30]
[359251269,1745870976571,500.0,0.00036707,30]
[359251270,1745870976896,500.0,0.00037973,30]
[359251271,1745870977868,500.0,0.00037973,30]
[359251272,1745870978179,500.0,0.00037023,30]
[359251273,1745870978488,500.0,0.00036074,30]
[359251274,1745870978789,500.0,0.00035125,30]
[359251275,1745870979088,500.0,0.00034175,30]
[359251276,1745870979401,515.0,0.00033226,30]
[359251280,1745871031759,-132.81121136,0.00022,2]
[359251281,1745871031769,-250.0,0.00022161,2]
[359251282,1745871031778,-250.0,0.00022494,2]
[359251283,1745871031788,-250.0,0.00022644,7]
[359251284,1745871031798,-878.08,0.00022644,2]
[359251285,1745871031807,-656.44086371,0.00022644,2]
[359251286,1745871031870,-423.71913629,0.00022644,2]
[359251287,1745871031881,-632.81121136,0.00022644,2]
[359251288,1745871031895,-400.0,0.00023,2]
[359251295,1745871032152,-159.7,0.00024014,2]
[359251297,1745871032170,-200.0,0.000242,2]
[359251299,1745871032179,-250.0,0.000242,2]
[359251301,1745871032189,-300.0,0.00024601,2]
[359251304,1745871032199,-1200.0,0.00024601,2]
[359251305,1745871032208,-300.0,0.00024601,2]
[359251306,1745871032218,-11104.17181027,0.00024603,2]
[359251307,1745871032228,-450.0,0.00025,2]
[359251308,1745871032238,-159.7,0.00025384,2]
[359251309,1745871032248,-174.38,0.00025882,2]
[359251310,1745871032259,-282.72785546,0.000259,6]
[359251311,1745871032268,-282.72785518,0.0002659,6]
[359251313,1745871032278,-300.0,0.00026662,2]
[359251315,1745871032287,-2000.0,0.00027,2]
[359251317,1745871032297,-500.0,0.00027,2]
[359251319,1745871032307,-2184.310151,0.0002701,2]
[359251321,1745871032316,-282.72785518,0.00027279,7]
[359251323,1745871032325,-1404.06,0.00027397,2]
[359251325,1745871032335,-1000.0,0.00027397,2]
[359251327,1745871032344,-282.72785518,0.00027969,7]
[359251329,1745871032353,-302.17,0.00028073,2]
[359251331,1745871032363,-282.72785518,0.00028659,8]
[359251332,1745871032372,-1404.06,0.00028767,2]
[359251333,1745871032382,-550.0,0.00029,2]
[359251334,1745871032392,-850.0,0.00029,2]
[359251335,1745871032401,-1469.3792,0.00029063,2]
[359251336,1745871032411,-250.0,0.00029069,2]
[359251337,1745871032420,-282.72785518,0.00029348,8]
[359251338,1745871032429,-500.0,0.0003,14]
[359251339,1745871032439,-282.72785518,0.00030038,9]
[359251340,1745871032448,-1404.06,0.00030137,2]
[359251341,1745871032458,-1921.84482283,0.00030146,2]
[359251343,1745871032467,-207.4,0.00030206,2]
[359251345,1745871032476,-542.3,0.00030364,2]
[359251347,1745871032486,-500.0,0.00030411,14]
[359251349,1745871032495,-500.0,0.00030685,14]
[359251351,1745871032504,-282.72785518,0.00030728,9]
[359251353,1745871032513,-500.0,0.00030959,14]
[359251355,1745871032523,-600.0,0.00031,2]
[359251357,1745871032532,-500.0,0.00031233,14]
[359251359,1745871032542,-282.72785518,0.00031417,9]
[359251361,1745871032552,-181.83,0.00031464,2]
[359251363,1745871032561,-500.0,0.00031507,14]
[359251365,1745871032575,-1404.06,0.00031507,2]
[359251367,1745871032584,-215.0738,0.00031575,2]
[359251369,1745871032593,-500.0,0.00031644,14]
[359251371,1745871032602,-1488.09177359,0.00031757,2]
[359251373,1745871032613,-312.65,0.00032069,2]
[359251375,1745871032622,-282.72785518,0.00032107,10]
[359251377,1745871032632,-1000.0,0.00032143,2]
[359251379,1745871032643,-300.0,0.00032269,2]
[359251381,1745871032652,-1000.0,0.00032379,2]
[359251383,1745871032661,-150.0,0.00032452,2]
[359251384,1745871032671,-668.77,0.00032575,2]
[359251386,1745871032680,-542.3,0.00032628,2]
[359251389,1745871032689,-2764.75,0.00032693,2]
[359251391,1745871032699,-1497.1740531,0.00032782,2]
[359251392,1745871032708,-282.72785518,0.00032797,10]
[359251395,1745871032718,-402.52021919,0.00032875,2]
[359251397,1745871032728,-1404.06,0.00032877,2]
[359251399,1745871032737,-223.0315306,0.00032944,2]
[359251400,1745871032746,-650.0,0.00033,2]
[359251403,1745871032756,-943.40271865,0.00033155,2]
[359251404,1745871032765,-1000.0,0.00033165,2]
[359251405,1745871032775,-651.27,0.00033296,2]
[359251407,1745871032784,-150.0,0.00033319,2]
[359251409,1745871032794,-282.72785518,0.00033486,11]
[359251411,1745871032803,-1135.43204092,0.00033539,2]
[359251412,1745871032812,-522.0,0.000337,2]
[359251414,1745871032822,-282.72785518,0.00034176,11]
[359251416,1745871032831,-150.0,0.00034186,2]
[359251418,1745871032840,-231.28369723,0.00034313,2]
[359251420,1745871032850,-500.0,0.00034315,2]
[359251422,1745871032859,-282.72785518,0.00034866,12]
[359251424,1745871032869,-542.3,0.00034891,2]
[359251426,1745871032878,-700.0,0.00035,2]
[359251427,1745871032891,-150.0,0.00035053,2]
[359251428,1745871032901,-282.72785518,0.00035555,12]
[359251429,1745871032911,-239.84119403,0.00035682,2]
[359251430,1745871032920,-166.66,0.00035874,2]
[359251431,1745871032930,-150.0,0.00035919,2]
[359251432,1745871032940,-1000.0,0.00036161,2]
[359251433,1745871032950,-1267.57,0.00036185,5]
[359251434,1745871032960,-1250.24,0.00036185,5]
[359251435,1745871032969,-282.72785518,0.00036245,13]
[359251436,1745871032979,-562.8933269,0.00036698,4]
[359251437,1745871032988,-150.0,0.00036786,2]
[359251438,1745871032998,-282.72785518,0.00036934,13]
[359251439,1745871033007,-750.0,0.00037,2]
[359251440,1745871033017,-248.71531821,0.00037051,2]
[359251441,1745871033027,-166.66,0.00037058,2]
[359251442,1745871033036,-542.3,0.00037155,2]
[359251443,1745871033046,-282.72785518,0.00037624,14]
[359251444,1745871033055,-150.0,0.00037653,2]
[359251445,1745871033065,-3546.91074492,0.00038,3]
[359251446,1745871033075,-20000.0,0.00038,2]
[359251447,1745871033085,-912.01,0.00038082,2]
[359251448,1745871033095,-600.0,0.000381,2]
[359251449,1745871033104,-937.1057,0.00038119,10]
[359251450,1745871033114,-166.66,0.00038242,2]
[359251451,1745871033123,-4344.67408189,0.00038246,2]
[359251452,1745871033133,-227.54851067,0.00038246,15]
[359251453,1745871033143,-8040.08553052,0.00038246,2]
[359251454,1745871033153,-296.50466061,0.0003825,2]
[359251455,1745871033163,-265.9975,0.00038255,2]
[359251456,1745871033173,-534.5893,0.00038256,2]
[359251457,1745871033183,-282.72785518,0.00038314,14]
[359251458,1745871033192,-240.09,0.00038325,2]
[359251459,1745871033202,-156.99,0.00038336,2]
[359251460,1745871033211,-167.54978206,0.00038338,2]
[359251461,1745871033221,-305.33224661,0.00038345,15]
[359251462,1745871033230,-214.0,0.00038346,2]
[359251463,1745871033240,-185460.35221235,0.00038346,3]
[359251464,1745871033284,-94977.87471134,0.00038346,3]
[359251470,1745871037862,-278.873,0.00037579,2]
[359251471,1745871037873,-336.14333564,0.00038246,2]
[359251472,1745871037882,-15964.64627631,0.00038346,3]
[359251473,1745871037891,-65644.19977608,0.00038346,3]
[359251474,1745871037908,-2423.53571079,0.00038346,3]
[359251475,1745871037919,-2985.56946839,0.00038346,3]
[359251476,1745871037930,-19743.10105212,0.00038346,3]
[359251486,1745871040074,-56051.10927562,0.00038346,3]
[359251487,1745871040089,-244.98355408,0.00038346,2]
[359251488,1745871040103,-153.0,0.00038356,5]
[359251489,1745871040116,-700.0,0.00038356,14]
[359251490,1745871040131,-700.0,0.00038356,14]
[359251491,1745871040146,-700.0,0.00038356,14]
[359251492,1745871040160,-700.0,0.00038356,14]
[359251493,1745871040175,-700.0,0.00038356,14]
[359251494,1745871040190,-562.29242911,0.00038356,6]
[359251495,1745871040203,-470.0,0.00038356,6]
[359251496,1745871040216,-500.0,0.00038356,6]
[359251497,1745871040231,-470.0,0.00038356,5]
[359251498,1745871040245,-470.0,0.00038356,6]
[359251499,1745871040259,-470.0,0.00038356,6]
[359251500,1745871040272,-262.78508974,0.00038356,6]
[359251501,1745871040286,-601.60611531,0.00038356,6]
[359251502,1745871040300,-470.0,0.00038356,6]
[359251503,1745871040314,-470.0,0.00038356,6]
[359251504,1745871040328,-511.32812689,0.00038356,6]
[359251505,1745871040342,-470.0,0.00038356,6]
[359251506,1745871040356,-470.0,0.00038356,6]
[359251507,1745871040371,-470.0,0.00038356,6]
[359251508,1745871040385,-470.0,0.00038356,6]
[359251509,1745871040399,-1527.944005,0.00038356,6]
[359251510,1745871040411,-470.0,0.00038356,6]
[359251511,1745871040425,-470.0,0.00038356,6]
[359251512,1745871040438,-470.0,0.00038356,6]
[359251513,1745871040452,-470.0,0.00038356,6]
[359251514,1745871040465,-168.78615288,0.00038356,6]
[359251515,1745871040478,-1167.816101,0.00038356,6]
[359251516,1745871040492,-470.0,0.00038356,6]
[359251517,1745871040505,-167.800909,0.00038356,6]
[359251518,1745871040518,-470.0,0.00038356,6]
[359251519,1745871040532,-470.0,0.00038356,6]
[359251520,1745871040545,-752.50564,0.00038356,6]
[359251521,1745871040558,-167.85715,0.00038356,6]
[359251522,1745871040576,-470.0,0.00038356,6]
[359251523,1745871040590,-470.0,0.00038356,6]
[359251524,1745871040604,-470.0,0.00038356,6]
[359251525,1745871040620,-470.0,0.00038356,6]
[359251526,1745871040635,-470.0,0.00038356,6]
[359251528,1745871040649,-470.0,0.00038356,6]
[359251531,1745871040663,-470.0,0.00038356,6]
[359251533,1745871040676,-470.0,0.00038356,6]
[359251535,1745871040689,-470.0,0.00038356,6]
[359251536,1745871040704,-470.0,0.00038356,6]
[359251537,1745871040717,-470.0,0.00038356,6]
[359251538,1745871040731,-470.0,0.00038356,6]
[359251539,1745871040746,-470.0,0.00038356,6]
[359251540,1745871040760,-470.0,0.00038356,6]
[359251541,1745871040773,-470.0,0.00038356,6]
[359251543,1745871040787,-470.0,0.00038356,6]
[359251544,1745871040800,-470.0,0.00038356,6]
[359251545,1745871040811,-470.0,0.00038356,6]
[359251546,1745871040822,-470.0,0.00038356,6]
[359251547,1745871040832,-470.0,0.00038356,6]
[359251548,1745871040843,-359.732029,0.00038356,6]
[359251549,1745871040853,-470.0,0.00038356,6]
[359251550,1745871040863,-470.0,0.00038356,6]
[359251551,1745871040872,-470.0,0.00038356,6]
[359251552,1745871040882,-470.0,0.00038356,6]
[359251553,1745871040892,-470.0,0.00038356,6]
[359251554,1745871040903,-470.0,0.00038356,6]
[359251555,1745871040914,-470.0,0.00038356,6]
[359251556,1745871040924,-470.0,0.00038356,6]
[359251557,1745871040935,-472.72,0.00038356,6]
[359251558,1745871040947,-470.0,0.00038356,6]
[359251559,1745871040957,-470.0,0.00038356,6]
[359251560,1745871040966,-470.0,0.00038356,6]
[359251561,1745871041303,-470.0,0.00038356,6]
[359251562,1745871041326,-470.0,0.00038356,6]
[359251563,1745871041350,-470.0,0.00038356,6]
[359251564,1745871041359,-470.0,0.00038356,6]
[359251565,1745871041369,-470.0,0.00038356,6]
[359251566,1745871041378,-470.0,0.00038356,6]
[359251567,1745871041387,-470.0,0.00038356,6]
[359251568,1745871041397,-470.0,0.00038356,6]
[359251569,1745871041406,-470.0,0.00038356,6]
[359251570,1745871041416,-470.0,0.00038356,6]
[359251571,1745871041425,-470.0,0.00038356,6]
[359251572,1745871041434,-400.0,0.00038356,6]
[359251573,1745871041444,-470.0,0.00038356,6]
[359251574,1745871041453,-578.31389006,0.00038356,6]
[359251575,1745871041463,-470.0,0.00038356,6]
[359251576,1745871041472,-470.0,0.00038356,6]
[359251577,1745871041482,-470.0,0.00038356,6]
[359251578,1745871041492,-470.0,0.00038356,6]
[359251579,1745871041502,-167.857149,0.00038356,6]
[359251580,1745871041511,-470.0,0.00038356,6]
[359251581,1745871041521,-470.0,0.00038356,6]
[359251582,1745871041531,-470.0,0.00038356,6]
[359251583,1745871041541,-181.28082568,0.00038356,6]
[359251584,1745871041551,-470.0,0.00038356,6]
[359251585,1745871041561,-470.0,0.00038356,6]
[359251586,1745871041574,-470.0,0.00038356,6]
[359251587,1745871041584,-470.0,0.00038356,6]
[359251588,1745871041593,-470.0,0.00038356,6]
[359251589,1745871041603,-470.0,0.00038356,6]
[359251590,1745871041613,-601.54046928,0.00038356,6]
[359251591,1745871041623,-1000.0,0.00038356,6]
[359251592,1745871041632,-470.0,0.00038356,6]
[359251593,1745871041642,-493.46,0.00038356,6]
[359251594,1745871041653,-470.0,0.00038356,6]
[359251595,1745871041662,-470.0,0.00038356,6]
[359251596,1745871041671,-470.0,0.00038356,6]
[359251597,1745871041682,-470.0,0.00038356,6]
[359251598,1745871041691,-551.03,0.00038356,6]
[359251599,1745871041701,-470.0,0.00038356,6]
[359251600,1745871041711,-602.25951048,0.00038356,6]
[359251601,1745871041720,-470.0,0.00038356,6]
[359251602,1745871041729,-582.58021065,0.00038356,6]
[359251603,1745871041738,-470.0,0.00038356,6]
[359251604,1745871041748,-470.0,0.00038356,6]
[359251605,1745871041757,-486.02,0.00038356,6]
[359251606,1745871041766,-470.0,0.00038356,6]
[359251607,1745871041775,-158.311127,0.00038356,6]
[359251608,1745871041784,-470.0,0.00038356,6]
[359251609,1745871041793,-470.0,0.00038356,6]
[359251610,1745871041803,-167.80091,0.00038356,6]
[359251611,1745871041812,-470.0,0.00038356,6]
[359251612,1745871041821,-470.0,0.00038356,6]
[359251613,1745871041831,-600.0,0.00038356,6]
[359251614,1745871041842,-470.0,0.00038356,6]
[359251615,1745871041852,-470.0,0.00038356,6]
[359251616,1745871041862,-1495.33,0.00038356,6]
[359251617,1745871041871,-470.0,0.00038356,6]
[359251618,1745871041880,-470.0,0.00038356,6]
[359251619,1745871041889,-470.0,0.00038356,6]
[359251620,1745871041899,-470.0,0.00038356,6]
[359251621,1745871041908,-470.0,0.00038356,6]
[359251622,1745871041917,-470.0,0.00038356,6]